[Event "Schack-SM 2024: Mastarklassen"]
[Site "Fortnox Arena, Hejaregatan 5, Vaxjo, Sweden"]
[Date "2024.06.29"]
[Round "1.8"]
[White "Persson, Sebastian 2007"]
[Black "Ask, Josef"]
[Result "1-0"]
[TimeControl "90 minutes for 40 moves + 30 minutes for the rest of the game + 30 seconds per move from move one."]
[BlackTitle "FM"]
[WhiteElo "2063"]
[BlackElo "2136"]

1. d4 {[%clk 01:30:51]} {[%emt 00:00:08]} Nf6 {[%clk 01:30:45]} {[%emt
00:00:15]} 2. Nf3 {[%clk 01:31:12]} {[%emt 00:00:10]} g6 {[%clk 01:30:12]}
{[%emt 00:01:02]} 3. c4 {[%clk 01:31:33]} {[%emt 00:00:09]} Bg7 {[%clk
01:29:44]} {[%emt 00:00:57]} 4. Nc3 {[%clk 01:31:52]} {[%emt 00:00:12]} d6
{[%clk 01:29:19]} {[%emt 00:00:55]} 5. e4 {[%clk 01:32:05]} {[%emt 00:00:17]}
O-O {[%clk 01:29:15]} {[%emt 00:00:35]} 6. Be2 {[%clk 01:32:21]} {[%emt
00:00:15]} e5 {[%clk 01:28:40]} {[%emt 00:01:05]} 7. dxe5 {[%clk 01:32:34]}
{[%emt 00:00:16]} dxe5 {[%clk 01:29:04]} {[%emt 00:00:07]} 8. Qxd8 {[%clk
01:32:55]} {[%emt 00:00:09]} Rxd8 {[%clk 01:29:27]} {[%emt 00:00:05]} 9. Bg5
{[%clk 01:33:17]} {[%emt 00:00:10]} Re8 {[%clk 01:27:46]} {[%emt 00:02:10]} 10.
O-O {[%clk 01:33:23]} {[%emt 00:00:25]} c6 {[%clk 01:25:25]} {[%emt 00:02:52]}
11. Rfd1 {[%clk 01:33:03]} {[%emt 00:00:49]} Nbd7 {[%clk 01:13:59]} {[%emt
00:11:57]} 12. Ne1 {[%clk 01:33:11]} {[%emt 00:00:21]} Nc5 {[%clk 01:10:25]}
{[%emt 00:04:03]} 13. f3 {[%clk 01:33:17]} {[%emt 00:00:24]} Ne6 {[%clk
01:08:52]} {[%emt 00:02:04]} 14. Be3 {[%clk 01:33:36]} {[%emt 00:00:10]} Nh5
{[%clk 01:06:29]} {[%emt 00:02:54]} 15. g3 {[%clk 01:31:32]} {[%emt 00:02:33]}
Nd4 {[%clk 01:02:50]} {[%emt 00:04:10]} 16. Bf1 {[%clk 01:09:37]} {[%emt
00:22:24]} f5 {[%clk 00:57:15]} {[%emt 00:06:06]} 17. exf5 {[%clk 01:07:18]}
{[%emt 00:02:49]} gxf5 {[%clk 00:52:20]} {[%emt 00:05:25]} 18. f4 {[%clk
00:57:02]} {[%emt 00:10:46]} Ne6 {[%clk 00:44:39]} {[%emt 00:08:11]} 19. fxe5
{[%clk 00:56:16]} {[%emt 00:01:15]} Bxe5 {[%clk 00:41:12]} {[%emt 00:03:57]} 20.
Nf3 {[%clk 00:54:00]} {[%emt 00:02:46]} Bc7 {[%clk 00:38:52]} {[%emt 00:02:49]}
21. Bf2 {[%clk 00:43:55]} {[%emt 00:10:35]} Nf6 {[%clk 00:35:37]} {[%emt
00:03:46]} 22. Re1 {[%clk 00:40:15]} {[%emt 00:04:09]} Ng4 {[%clk 00:33:20]}
{[%emt 00:02:47]} 23. Rad1 {[%clk 00:38:50]} {[%emt 00:01:56]} Rf8 {[%clk
00:30:33]} {[%emt 00:03:18]} 24. h3 {[%clk 00:34:28]} {[%emt 00:04:50]} f4
{[%clk 00:24:36]} {[%emt 00:06:28]} 25. gxf4 {[%clk 00:20:29]} {[%emt
00:14:28]} Nxf2 {[%clk 00:24:34]} {[%emt 00:00:33]} 26. Kxf2 {[%clk 00:20:50]}
{[%emt 00:00:09]} Nxf4 {[%clk 00:24:11]} {[%emt 00:00:52]} 27. c5 {[%clk
00:14:32]} {[%emt 00:06:48]} Nxh3+ {[%clk 00:17:15]} {[%emt 00:07:25]} 28. Bxh3
{[%clk 00:14:52]} {[%emt 00:00:10]} Bxh3 {[%clk 00:17:35]} {[%emt 00:00:12]} 29.
Re7 {[%clk 00:11:58]} {[%emt 00:03:25]} Bd8 {[%clk 00:15:11]} {[%emt 00:02:54]}
30. Rg1+ {[%clk 00:10:18]} {[%emt 00:02:11]} Kh8 {[%clk 00:15:12]} {[%emt
00:00:27]} 31. Rxb7 {[%clk 00:09:19]} {[%emt 00:01:29]} Bh4+ {[%clk 00:13:20]}
{[%emt 00:02:22]} 32. Ke3 {[%clk 00:07:33]} {[%emt 00:02:18]} Rae8+ {[%clk
00:12:32]} {[%emt 00:01:18]} 33. Ne4 {[%clk 00:07:52]} {[%emt 00:00:10]} Bf5
{[%clk 00:11:54]} {[%emt 00:01:08]} 34. Rb4 {[%clk 00:08:09]} {[%emt 00:00:14]}
Be7 {[%clk 00:09:09]} {[%emt 00:03:14]} 35. Rc1 {[%clk 00:05:43]} {[%emt
00:02:58]} Bg4 {[%clk 00:09:01]} {[%emt 00:00:38]} 36. Ne5 {[%clk 00:01:44]}
{[%emt 00:04:27]} Bf5 {[%clk 00:06:52]} {[%emt 00:02:39]} 37. Rc3 {[%clk
00:00:55]} {[%emt 00:01:19]} Bxe4 {[%clk 00:02:42]} {[%emt 00:04:40]} 38. Rxe4
{[%clk 00:01:14]} {[%emt 00:00:10]} Bf6 {[%clk 00:02:07]} {[%emt 00:01:05]} 39.
Kd4 {[%clk 00:00:48]} {[%emt 00:00:57]} Rf7 {[%clk 00:00:59]} {[%emt 00:01:37]}
40. Rce3 {[%clk 00:00:46]} {[%emt 00:00:31]} Rfe7 {[%clk 00:00:40]} {[%emt
00:00:49]} 41. b4 {[%clk 00:27:31]} {[%emt 00:03:47]} a6 {[%clk 00:30:16]}
{[%emt 00:00:53]} 42. a4 {[%clk 00:27:34]} {[%emt 00:00:26]} h5 {[%clk
00:29:11]} {[%emt 00:01:34]} 43. b5 {[%clk 00:26:46]} {[%emt 00:01:20]} axb5
{[%clk 00:29:04]} {[%emt 00:00:36]} 44. axb5 {[%clk 00:27:05]} {[%emt
00:00:12]} cxb5 {[%clk 00:29:10]} {[%emt 00:00:25]} 45. Kd5 {[%clk 00:27:06]}
{[%emt 00:00:28]} Kh7 {[%clk 00:28:10]} {[%emt 00:01:29]} 46. c6 {[%clk
00:25:36]} {[%emt 00:02:00]} b4 {[%clk 00:21:05]} {[%emt 00:07:35]} 47. Nd7
{[%clk 00:19:43]} {[%emt 00:06:23]} Kg6 {[%clk 00:14:39]} {[%emt 00:06:57]} 48.
Rxe7 {[%clk 00:19:21]} {[%emt 00:00:52]} Bxe7 {[%clk 00:14:16]} {[%emt
00:00:53]} 49. c7 {[%clk 00:15:50]} {[%emt 00:01:31]} b3 {[%clk 00:11:43]}
{[%emt 00:05:32]} 50. Rxe7 {[%clk 00:11:59]} {[%emt 00:04:20]} Rxe7 {[%clk
00:09:18]} {[%emt 00:02:56]} 51. c8=Q {[%clk 00:12:17]} {[%emt 00:00:11]} b2
{[%clk 00:08:41]} {[%emt 00:01:08]} 52. Qg8+ {[%clk 00:10:19]} {[%emt
00:02:27]} Kf5 {[%clk 00:07:47]} {[%emt 00:01:25]} 53. Qf8 {[%clk 00:09:09]}
{[%emt 00:01:40]} Kg4 {[%clk 00:07:27]} {[%emt 00:00:49]} 54. Nf6+ {[%clk
00:08:08]} {[%emt 00:01:33]} Kh4 {[%clk 00:06:40]} {[%emt 00:01:16]} 55. Qb8
{[%clk 00:07:53]} {[%emt 00:00:45]} Re2 {[%clk 00:06:13]} {[%emt 00:00:57]} 56.
Ne4 {[%clk 00:08:00]} {[%emt 00:00:22]} Rg2 {[%clk 00:05:52]} {[%emt 00:00:53]}
57. Qb3 {[%clk 00:05:43]} {[%emt 00:02:46]} Kg4 {[%clk 00:05:28]} {[%emt
00:00:54]} 58. Ke5 {[%clk 00:05:37]} {[%emt 00:00:36]} h4 {[%clk 00:01:55]}
{[%emt 00:04:03]} 59. Qd1+ {[%clk 00:05:20]} {[%emt 00:00:48]} Kh3 {[%clk
00:01:49]} {[%emt 00:00:36]} 60. Qh1+ {[%clk 00:05:36]} {[%emt 00:00:13]} 1-0

[Event "Schack-SM 2024: Mastarklassen"]
[Site "Fortnox Arena, Hejaregatan 5, Vaxjo, Sweden"]
[Date "2024.06.29"]
[Round "1.9"]
[White "Lind, Jan-Olov"]
[Black "Neretljak, Nedzad"]
[Result "1/2-1/2"]
[TimeControl "90 minutes for 40 moves + 30 minutes for the rest of the game + 30 seconds per move from move one."]
[BlackTitle "CM"]
[WhiteElo "2135"]
[BlackElo "2048"]

1. e4 {[%clk 01:30:58]} c6 {[%clk 01:30:18]} {[%emt 00:00:43]} 2. d3 {[%clk
01:30:57]} {[%emt 00:00:31]} d5 {[%clk 01:30:15]} {[%emt 00:00:32]} 3. Nd2
{[%clk 01:31:21]} {[%emt 00:00:07]} Nf6 {[%clk 01:30:20]} {[%emt 00:00:25]} 4.
Ngf3 {[%clk 01:31:36]} {[%emt 00:00:15]} Qc7 {[%clk 01:29:28]} {[%emt
00:01:20]} 5. g3 {[%clk 01:30:20]} {[%emt 00:01:48]} h5 {[%clk 01:28:04]}
{[%emt 00:01:53]} 6. Bg2 {[%clk 01:27:53]} {[%emt 00:02:58]} Rg8 {[%clk
01:23:40]} {[%emt 00:04:53]} 7. e5 {[%clk 01:22:39]} {[%emt 00:05:45]} Ng4
{[%clk 01:23:20]} {[%emt 00:00:49]} 8. d4 {[%clk 01:22:31]} {[%emt 00:00:39]}
Nh6 {[%clk 01:15:35]} {[%emt 00:08:15]} 9. Nb3 {[%clk 01:15:22]} {[%emt
00:07:40]} Nf5 {[%clk 01:12:47]} {[%emt 00:03:17]} 10. Bf4 {[%clk 01:07:39]}
{[%emt 00:08:13]} e6 {[%clk 01:12:22]} {[%emt 00:00:54]} 11. Ng5 {[%clk
00:59:37]} {[%emt 00:08:33]} g6 {[%clk 01:12:39]} {[%emt 00:00:14]} 12. Nh7
{[%clk 00:55:47]} {[%emt 00:04:20]} Nd7 {[%clk 01:09:32]} {[%emt 00:03:36]} 13.
O-O {[%clk 00:54:58]} {[%emt 00:01:19]} Be7 {[%clk 01:09:30]} {[%emt 00:00:31]}
14. Bg5 {[%clk 00:52:58]} {[%emt 00:02:30]} Qd8 {[%clk 01:09:10]} {[%emt
00:00:49]} 15. Qd2 {[%clk 00:52:36]} {[%emt 00:00:54]} Rh8 {[%clk 01:07:52]}
{[%emt 00:01:48]} 16. Bxe7 {[%clk 00:51:24]} {[%emt 00:01:42]} Qxe7 {[%clk
01:08:12]} {[%emt 00:00:10]} 17. Ng5 {[%clk 00:51:32]} {[%emt 00:00:23]} b6
{[%clk 01:06:46]} {[%emt 00:01:55]} 18. h4 {[%clk 00:50:11]} {[%emt 00:01:50]}
a5 {[%clk 01:06:47]} {[%emt 00:00:30]} 19. Rfe1 {[%clk 00:47:39]} {[%emt
00:03:02]} Ba6 {[%clk 01:05:22]} {[%emt 00:01:53]} 20. a3 {[%clk 00:46:10]}
{[%emt 00:02:01]} Kf8 {[%clk 01:05:21]} {[%emt 00:00:31]} 21. Nc1 {[%clk
00:45:36]} {[%emt 00:01:05]} Kg7 {[%clk 01:05:35]} {[%emt 00:00:15]} 22. Ne2
{[%clk 00:45:25]} {[%emt 00:00:41]} c5 {[%clk 01:03:57]} {[%emt 00:02:06]} 23.
c3 {[%clk 00:44:19]} {[%emt 00:01:38]} a4 {[%clk 00:59:59]} {[%emt 00:04:28]}
24. Nf4 {[%clk 00:38:27]} {[%emt 00:06:22]} Bc4 {[%clk 00:59:48]} {[%emt
00:00:41]} 25. Bh3 {[%clk 00:31:56]} {[%emt 00:07:01]} Rh6 {[%clk 00:46:08]}
{[%emt 00:14:09]} 26. Bxf5 {[%clk 00:29:30]} {[%emt 00:02:56]} gxf5 {[%clk
00:46:27]} {[%emt 00:00:11]} 27. Qd1 {[%clk 00:29:30]} {[%emt 00:00:30]} Bb3
{[%clk 00:45:29]} {[%emt 00:01:29]} 28. Nxh5+ {[%clk 00:29:28]} {[%emt
00:00:32]} Kh8 {[%clk 00:45:48]} {[%emt 00:00:11]} 29. Qf3 {[%clk 00:29:02]}
{[%emt 00:00:55]} Rg8 {[%clk 00:43:40]} {[%emt 00:02:38]} 30. Nf4 {[%clk
00:28:01]} {[%emt 00:01:31]} Bc2 {[%clk 00:43:49]} {[%emt 00:00:21]} 31. Qe3
{[%clk 00:26:52]} {[%emt 00:01:39]} Nf8 {[%clk 00:36:42]} {[%emt 00:07:37]} 32.
Rac1 {[%clk 00:21:12]} {[%emt 00:06:11]} Bb3 {[%clk 00:34:53]} {[%emt
00:02:19]} 33. dxc5 {[%clk 00:18:57]} {[%emt 00:02:45]} bxc5 {[%clk 00:30:15]}
{[%emt 00:05:07]} 34. Nd3 {[%clk 00:19:14]} {[%emt 00:00:14]} Rh5 {[%clk
00:24:35]} {[%emt 00:06:08]} 35. Qxc5 {[%clk 00:18:26]} {[%emt 00:01:19]} Qb7
{[%clk 00:24:12]} {[%emt 00:00:53]} 36. Nf4 {[%clk 00:16:50]} {[%emt 00:02:06]}
Rh6 {[%clk 00:23:50]} {[%emt 00:00:48]} 37. Qb4 {[%clk 00:14:46]} {[%emt
00:02:38]} Qd7 {[%clk 00:21:38]} {[%emt 00:02:41]} 38. Qd4 {[%clk 00:14:46]}
{[%emt 00:00:30]} Nh7 {[%clk 00:21:01]} {[%emt 00:01:06]} 39. Nxh7 {[%clk
00:13:31]} {[%emt 00:01:47]} Rxh7 {[%clk 00:20:36]} {[%emt 00:00:55]} 40. c4
{[%clk 00:10:42]} {[%emt 00:03:19]} Rg4 {[%clk 00:18:44]} {[%emt 00:02:22]} 41.
Kg2 {[%clk 00:01:02]} {[%emt 00:10:10]} Qe7 {[%clk 00:10:36]} {[%emt 00:08:37]}
42. c5 {[%clk 00:25:51]} {[%emt 00:05:42]} Bc4 {[%clk 00:36:39]} {[%emt
00:04:27]} 43. Kf3 {[%clk 00:23:30]} {[%emt 00:02:51]} Qe8 {[%clk 00:33:25]}
{[%emt 00:03:44]} 44. Ke3 {[%clk 00:21:05]} {[%emt 00:02:56]} Qb5 {[%clk
00:33:10]} {[%emt 00:00:44]} 45. Kd2 {[%clk 00:20:41]} {[%emt 00:00:53]} Rhg7
{[%clk 00:32:07]} {[%emt 00:01:32]} 46. Re3 {[%clk 00:19:10]} {[%emt 00:02:01]}
Rg8 {[%clk 00:32:01]} {[%emt 00:00:36]} 47. Kc2 {[%clk 00:15:22]} {[%emt
00:04:18]} Rc8 {[%clk 00:31:57]} {[%emt 00:00:35]} 48. Kb1 {[%clk 00:14:53]}
{[%emt 00:00:59]} Rxc5 {[%clk 00:32:07]} {[%emt 00:00:21]} 49. Rec3 {[%clk
00:14:12]} {[%emt 00:01:10]} Rc8 {[%clk 00:29:47]} {[%emt 00:02:50]} 50. Qa7
{[%clk 00:10:14]} {[%emt 00:04:28]} Rb8 {[%clk 00:28:41]} {[%emt 00:01:36]} 51.
R1c2 {[%clk 00:09:56]} {[%emt 00:00:48]} Rb7 {[%clk 00:27:32]} {[%emt
00:01:38]} 52. Qa8+ {[%clk 00:08:04]} {[%emt 00:02:23]} Rb8 {[%clk 00:26:56]}
{[%emt 00:01:06]} 53. Qa7 {[%clk 00:08:20]} {[%emt 00:00:14]} Rb7 {[%clk
00:24:34]} {[%emt 00:02:52]} 54. Qe3 {[%clk 00:08:41]} {[%emt 00:00:10]} Kh7
{[%clk 00:18:39]} {[%emt 00:06:24]} 55. Qd2 {[%clk 00:06:10]} {[%emt 00:03:01]}
Qb6 {[%clk 00:08:11]} {[%emt 00:10:59]} 56. Nh5 {[%clk 00:06:00]} {[%emt
00:00:39]} Bb3 {[%clk 00:06:48]} {[%emt 00:01:54]} 57. Nf6+ {[%clk 00:05:37]}
{[%emt 00:00:52]} Kg7 {[%clk 00:06:33]} {[%emt 00:00:45]} 58. Rc1 {[%clk
00:05:34]} {[%emt 00:00:33]} Qd4 {[%clk 00:04:29]} {[%emt 00:02:33]} 59. Qxd4
{[%clk 00:05:22]} {[%emt 00:00:42]} Rxd4 {[%clk 00:04:53]} {[%emt 00:00:07]} 60.
Rc8 {[%clk 00:05:22]} {[%emt 00:00:31]} Bc4 {[%clk 00:03:39]} {[%emt 00:01:44]}
61. Rg8+ {[%clk 00:04:15]} {[%emt 00:01:36]} Kh6 {[%clk 00:03:31]} {[%emt
00:00:39]} 62. Rh8+ {[%clk 00:03:54]} {[%emt 00:00:50]} Kg7 {[%clk 00:03:47]}
{[%emt 00:00:13]} 63. Rg8+ {[%clk 00:04:18]} {[%emt 00:00:07]} Kh6 {[%clk
00:04:12]} {[%emt 00:00:05]} 64. Rh8+ {[%clk 00:04:42]} {[%emt 00:00:05]}
1/2-1/2

[Event "Schack-SM 2024: Mastarklassen"]
[Site "Fortnox Arena, Hejaregatan 5, Vaxjo, Sweden"]
[Date "2024.06.29"]
[Round "1.10"]
[White "Karlsson, Jorgen"]
[Black "Nygren, David"]
[Result "1/2-1/2"]
[TimeControl "90 minutes for 40 moves + 30 minutes for the rest of the game + 30 seconds per move from move one."]
[WhiteElo "2020"]
[BlackElo "2132"]

1. g3 {[%clk 01:30:56]} {[%emt 00:00:04]} Nf6 {[%clk 01:30:11]} {[%emt
00:00:49]} 2. Bg2 {[%clk 01:31:19]} {[%emt 00:00:07]} d5 {[%clk 01:30:19]}
{[%emt 00:00:22]} 3. b3 {[%clk 01:31:38]} {[%emt 00:00:11]} c5 {[%clk
01:29:40]} {[%emt 00:01:09]} 4. Bb2 {[%clk 01:31:50]} {[%emt 00:00:18]} e6
{[%clk 01:29:08]} {[%emt 00:01:02]} 5. Nf3 {[%clk 01:31:07]} {[%emt 00:01:12]}
Nc6 {[%clk 01:26:21]} {[%emt 00:03:18]} 6. O-O {[%clk 01:30:25]} {[%emt
00:01:12]} Be7 {[%clk 01:25:44]} {[%emt 00:01:07]} 7. d3 {[%clk 01:29:46]}
{[%emt 00:01:09]} O-O {[%clk 01:24:39]} {[%emt 00:01:35]} 8. Nbd2 {[%clk
01:28:53]} {[%emt 00:01:22]} Qc7 {[%clk 01:21:55]} {[%emt 00:03:16]} 9. e4
{[%clk 01:27:22]} {[%emt 00:02:00]} dxe4 {[%clk 01:17:24]} {[%emt 00:05:01]} 10.
dxe4 {[%clk 01:26:45]} {[%emt 00:01:07]} Rd8 {[%clk 01:13:41]} {[%emt
00:04:13]} 11. e5 {[%clk 01:18:42]} {[%emt 00:08:32]} Ne4 {[%clk 01:08:28]}
{[%emt 00:05:44]} 12. Re1 {[%clk 01:18:40]} {[%emt 00:00:31]} Nxd2 {[%clk
01:06:53]} {[%emt 00:02:06]} 13. Nxd2 {[%clk 01:18:16]} {[%emt 00:00:54]} Qa5
{[%clk 01:02:02]} {[%emt 00:05:21]} 14. c3 {[%clk 01:14:56]} {[%emt 00:03:49]}
Qc7 {[%clk 00:58:08]} {[%emt 00:04:24]} 15. c4 {[%clk 01:11:27]} {[%emt
00:04:00]} Qa5 {[%clk 00:49:43]} {[%emt 00:08:54]} 16. Re2 {[%clk 01:11:23]}
{[%emt 00:00:35]} Nb4 {[%clk 00:45:50]} {[%emt 00:04:22]} 17. Be4 {[%clk
01:11:25]} {[%emt 00:00:29]} Nd3 {[%clk 00:43:08]} {[%emt 00:03:12]} 18. Qc2
{[%clk 00:58:23]} {[%emt 00:13:31]} Nxb2 {[%clk 00:42:06]} {[%emt 00:01:33]} 19.
Qxb2 {[%clk 00:58:38]} {[%emt 00:00:15]} f5 {[%clk 00:39:54]} {[%emt 00:02:42]}
20. Bg2 {[%clk 00:58:00]} {[%emt 00:01:08]} Rb8 {[%clk 00:38:51]} {[%emt
00:01:33]} 21. Nf3 {[%clk 00:40:39]} {[%emt 00:17:50]} Bd7 {[%clk 00:21:10]}
{[%emt 00:18:12]} 22. Rd2 {[%clk 00:40:05]} {[%emt 00:01:04]} b5 {[%clk
00:19:36]} {[%emt 00:02:04]} 23. cxb5 {[%clk 00:39:40]} {[%emt 00:00:55]} Qxb5
{[%clk 00:18:17]} {[%emt 00:01:49]} 24. Qc3 {[%clk 00:31:40]} {[%emt 00:08:29]}
Be8 {[%clk 00:12:27]} {[%emt 00:06:20]} 25. Bf1 {[%clk 00:19:25]} {[%emt
00:12:45]} Qb6 {[%clk 00:07:57]} {[%emt 00:05:00]} 26. Rad1 {[%clk 00:16:42]}
{[%emt 00:03:14]} Rxd2 {[%clk 00:07:03]} {[%emt 00:01:25]} 27. Rxd2 {[%clk
00:16:47]} {[%emt 00:00:24]} Qb4 {[%clk 00:06:33]} {[%emt 00:01:00]} 28. Qxb4
{[%clk 00:16:16]} {[%emt 00:01:01]} Rxb4 {[%clk 00:06:07]} {[%emt 00:00:56]} 29.
Bc4 {[%clk 00:16:22]} {[%emt 00:00:23]} Kf7 {[%clk 00:06:06]} {[%emt 00:00:32]}
30. Ne1 {[%clk 00:15:37]} {[%emt 00:01:15]} Rb7 {[%clk 00:05:34]} {[%emt
00:01:00]} 31. Kf1 {[%clk 00:15:39]} {[%emt 00:00:29]} a5 {[%clk 00:04:44]}
{[%emt 00:01:22]} 32. a4 {[%clk 00:15:45]} {[%emt 00:00:23]} Rd7 {[%clk
00:04:14]} {[%emt 00:00:56]} 33. Ke2 {[%clk 00:15:59]} {[%emt 00:00:20]} g5
{[%clk 00:03:42]} {[%emt 00:01:02]} 34. f4 {[%clk 00:10:51]} {[%emt 00:05:37]}
Rxd2+ {[%clk 00:02:46]} {[%emt 00:01:27]} 35. Kxd2 {[%clk 00:11:19]} {[%emt
00:00:02]} gxf4 {[%clk 00:02:40]} {[%emt 00:00:36]} 36. gxf4 {[%clk 00:11:42]}
{[%emt 00:00:06]} Bc6 {[%clk 00:02:35]} {[%emt 00:00:36]} 37. Nc2 {[%clk
00:08:13]} {[%emt 00:03:59]} Bh4 {[%clk 00:02:13]} {[%emt 00:00:51]} 38. Ne3
{[%clk 00:07:45]} {[%emt 00:00:58]} Ke7 {[%clk 00:01:32]} {[%emt 00:01:11]} 39.
Ke2 {[%clk 00:07:54]} {[%emt 00:00:22]} Be4 {[%clk 00:01:08]} {[%emt 00:00:54]}
40. Bd3 {[%clk 00:06:56]} {[%emt 00:01:28]} Bxd3+ {[%clk 00:00:57]} {[%emt
00:00:41]} 41. Kxd3 {[%clk 00:07:17]} {[%emt 00:00:09]} Kd7 {[%clk 00:00:52]}
{[%emt 00:00:35]} 42. Ke2 {[%clk 00:01:21]} {[%emt 00:06:26]} Kc6 {[%clk
00:28:19]} {[%emt 00:03:03]} 43. Nc4 {[%clk 00:31:41]} {[%emt 00:00:11]} Bd8
{[%clk 00:28:24]} {[%emt 00:00:25]} 44. Kd3 {[%clk 00:32:05]} {[%emt 00:00:06]}
Bc7 {[%clk 00:28:08]} {[%emt 00:00:47]} 45. Ne3 {[%clk 00:32:13]} {[%emt
00:00:21]} Bd8 {[%clk 00:27:27]} {[%emt 00:01:08]} 46. Nc4 {[%clk 00:27:30]}
{[%emt 00:05:16]} Bc7 {[%clk 00:26:47]} {[%emt 00:01:11]} 47. Nd2 {[%clk
00:26:54]} {[%emt 00:01:05]} Kd5 {[%clk 00:25:27]} {[%emt 00:01:48]} 48. Nb1
{[%clk 00:26:48]} {[%emt 00:00:37]} Bd8 {[%clk 00:23:47]} {[%emt 00:02:11]} 49.
Nc3+ {[%clk 00:24:37]} {[%emt 00:02:41]} Kc6 {[%clk 00:24:12]} {[%emt
00:00:05]} 50. Nb5 {[%clk 00:23:02]} {[%emt 00:02:06]} Be7 {[%clk 00:21:44]}
{[%emt 00:02:57]} 51. Na3 {[%clk 00:22:28]} {[%emt 00:01:03]} Bd8 {[%clk
00:20:25]} {[%emt 00:01:49]} 52. Nc4 {[%clk 00:22:48]} {[%emt 00:00:10]} Bc7
{[%clk 00:20:43]} {[%emt 00:00:12]} 53. Ne3 {[%clk 00:23:08]} {[%emt 00:00:10]}
Bd8 {[%clk 00:20:32]} {[%emt 00:00:41]} 54. Nc4 {[%clk 00:23:33]} {[%emt
00:00:05]} Bc7 {[%clk 00:20:59]} {[%emt 00:00:03]} 1/2-1/2

[Event "Schack-SM 2024: Mastarklassen"]
[Site "Fortnox Arena, Hejaregatan 5, Vaxjo, Sweden"]
[Date "2024.06.29"]
[Round "1.11"]
[White "Johnson, Daniel"]
[Black "Ostensson, Julia"]
[Result "1/2-1/2"]
[TimeControl "90 minutes for 40 moves + 30 minutes for the rest of the game + 30 seconds per move from move one."]
[WhiteElo "2126"]
[BlackElo "2004"]

1. d4 {[%emt 00:15:45]} Nf6 {[%emt 00:00:07]} 2. c4 {[%clk 01:15:42]} {[%emt
00:00:01]} g6 {[%clk 01:31:47]} {[%emt 00:00:29]} 3. Nc3 {[%emt 00:00:14]} Bg7
4. e4 {[%clk 01:16:06]} d6 {[%emt 00:00:05]} 5. f3 {[%clk 01:16:31]} {[%emt
00:00:04]} O-O {[%clk 01:32:39]} {[%emt 00:00:06]} 6. Nge2 {[%clk 01:16:58]}
{[%emt 00:00:02]} a6 {[%clk 01:33:04]} {[%emt 00:00:05]} 7. Be3 {[%clk
01:13:47]} {[%emt 00:03:41]} b5 {[%clk 01:33:22]} {[%emt 00:00:13]} 8. Qd2
{[%clk 01:11:26]} {[%emt 00:02:49]} Nbd7 {[%clk 01:31:26]} {[%emt 00:02:27]} 9.
Ng3 {[%clk 01:06:58]} {[%emt 00:04:58]} b4 {[%clk 01:23:43]} {[%emt 00:08:13]}
10. Na4 {[%clk 01:04:48]} {[%emt 00:02:39]} c5 {[%clk 01:22:22]} {[%emt
00:01:53]} 11. dxc5 {[%clk 00:51:00]} {[%emt 00:14:18]} Qa5 {[%clk 01:22:44]}
{[%emt 00:00:07]} 12. Nb6 {[%clk 00:49:59]} {[%emt 00:01:31]} Nxb6 {[%clk
01:23:10]} {[%emt 00:00:04]} 13. cxb6 {[%clk 00:50:17]} {[%emt 00:00:12]} Nd7
{[%clk 01:23:31]} {[%emt 00:00:09]} 14. a3 {[%clk 00:37:34]} {[%emt 00:13:14]}
Nxb6 {[%clk 01:23:20]} {[%emt 00:00:41]} 15. Qxb4 {[%clk 00:37:39]} {[%emt
00:00:24]} Qxb4+ {[%clk 01:23:42]} {[%emt 00:00:08]} 16. axb4 {[%clk 00:38:05]}
{[%emt 00:00:04]} Bxb2 {[%clk 01:24:01]} {[%emt 00:00:12]} 17. Rb1 {[%clk
00:25:24]} {[%emt 00:13:10]} Bc3+ {[%clk 01:24:25]} {[%emt 00:00:06]} 18. Kf2
{[%clk 00:22:56]} {[%emt 00:02:57]} Na4 {[%clk 01:21:01]} {[%emt 00:03:56]} 19.
Ne2 {[%clk 00:14:18]} {[%emt 00:09:07]} Bb2 {[%clk 01:09:48]} {[%emt 00:11:43]}
20. Bd4 {[%clk 00:10:09]} {[%emt 00:04:39]} Rb8 {[%clk 01:09:44]} {[%emt
00:00:34]} 21. Bxb2 {[%clk 00:02:04]} {[%emt 00:08:35]} Rxb4 {[%clk 01:10:08]}
{[%emt 00:00:06]} 22. Ra1 {[%clk 00:02:26]} {[%emt 00:00:08]} Nxb2 {[%clk
01:10:32]} {[%emt 00:00:07]} 23. Nd4 {[%clk 00:02:38]} {[%emt 00:00:17]} Nxc4
{[%clk 01:06:04]} {[%emt 00:04:59]} 24. Nc6 {[%clk 00:02:45]} {[%emt 00:00:22]}
Rb2+ {[%clk 01:03:29]} {[%emt 00:03:06]} 25. Kg3 {[%clk 00:02:38]} {[%emt
00:00:35]} Ne3 {[%clk 00:57:45]} {[%emt 00:06:15]} 26. Nxe7+ {[%clk 00:02:52]}
{[%emt 00:00:15]} Kg7 {[%clk 00:58:10]} {[%emt 00:00:06]} 27. Ra3 {[%clk
00:01:24]} {[%emt 00:01:58]} f5 {[%clk 00:55:28]} {[%emt 00:03:12]} 28. exf5
{[%clk 00:01:36]} {[%emt 00:00:18]} gxf5 {[%clk 00:55:36]} {[%emt 00:00:22]} 29.
Kf4 {[%clk 00:00:51]} {[%emt 00:01:15]} Nxf1 {[%clk 00:03:10]} {[%emt
00:52:57]} 30. Rxf1 {[%clk 00:01:15]} {[%emt 00:00:05]} Rb4+ {[%clk 00:02:27]}
{[%emt 00:01:14]} 31. Kg3 {[%clk 00:01:19]} {[%emt 00:00:25]} f4+ {[%clk
00:01:23]} {[%emt 00:01:34]} 32. Kh4 {[%clk 00:01:16]} {[%emt 00:00:32]} Be6
{[%clk 00:01:26]} {[%emt 00:00:27]} 33. Rxa6 {[%clk 00:00:57]} {[%emt
00:00:50]} Kf6 {[%clk 00:01:17]} {[%emt 00:00:38]} 34. Nc6 {[%clk 00:00:34]}
{[%emt 00:00:54]} Rb2 {[%clk 00:00:35]} {[%emt 00:01:12]} 35. Ra4 {[%clk
00:00:58]} {[%emt 00:00:06]} Kg6 {[%clk 00:00:38]} {[%emt 00:00:28]} 36. Re1
{[%clk 00:00:47]} {[%emt 00:00:40]} Rf6 {[%clk 00:00:35]} {[%emt 00:00:33]} 37.
Nd4 {[%clk 00:00:31]} {[%emt 00:00:47]} Bd7 {[%clk 00:00:37]} {[%emt 00:00:28]}
38. Ra8 {[%clk 00:00:36]} {[%emt 00:00:25]} Rxg2 {[%clk 00:00:50]} {[%emt
00:00:16]} 39. Rg8+ {[%clk 00:00:49]} {[%emt 00:00:17]} Kf7 {[%clk 00:01:03]}
{[%emt 00:00:17]} 40. Rxg2 {[%clk 00:00:46]} {[%emt 00:00:33]} Rh6+ {[%clk
00:01:23]} {[%emt 00:00:10]} 41. Kg5 {[%clk 00:00:51]} {[%emt 00:00:24]} Rg6+
{[%clk 00:01:37]} {[%emt 00:00:16]} 42. Kxf4 {[%clk 00:23:13]} {[%emt
00:08:08]} Rxg2 {[%clk 00:32:02]} {[%emt 00:00:05]} 43. Re2 {[%clk 00:22:34]}
{[%emt 00:01:09]} Rg6 {[%clk 00:31:27]} {[%emt 00:01:05]} 44. Ra2 {[%clk
00:22:15]} {[%emt 00:00:49]} Rh6 {[%clk 00:22:22]} {[%emt 00:09:35]} 1/2-1/2